bitfinex/quotes_ETHUSD_20250213
["timestamp","ask_amount","ask_price","bid_price","bid_amount"]
[1739469172915,0.14987403,2645.3,2645.2,3.78032]
[1739469173422,0.14987403,2645.3,2645.2,4.536402]
[1739469176229,0.284,2645.5,2645.3,3.7802]
[1739469176628,0.284,2645.5,2645.2,4.536402]
[1739469176944,0.284,2645.5,2645.3,3.7802]
[1739469177427,0.284,2645.5,2645.4,3.78014]
[1739469177627,0.7686,2645.8,2645.5,3.77993]
[1739469177789,0.284,2645.7,2645.6,3.77986]
[1739469178152,2.53615809,2646.0,2645.7,3.77971]
[1739469178447,0.284,2645.9,2645.5,3.77988]
[1739469178746,0.284,2645.9,2645.5,7.55976]
[1739469179338,0.284,2645.9,2645.5,3.77988]
[1739469179644,0.284,2645.8,2645.5,3.77988]
[1739469180027,0.284,2645.8,2645.4,4.54527]
[1739469180741,3.77981,2645.7,2645.2,3.0]
[1739469180889,3.82705725,2645.7,2645.2,3.0]
[1739469181091,3.82705725,2645.7,2645.2,6.78041]
[1739469181292,0.7633,2645.6,2645.3,3.78022]
[1739469181611,0.7633,2645.6,2645.2,3.78036]
[1739469182011,0.7633,2645.6,2645.2,3.0]
[1739469182318,0.0472516,2645.5,2645.1,3.78057]
[1739469182485,0.0472516,2645.5,2644.9,8.03e-06]
[1739469182690,6.05013,2645.5,2645.0,3.78071]
[1739469182992,6.05013,2645.5,2645.0,3.78063]
[1739469183204,2.27,2645.5,2645.0,3.78061]
[1739469183395,6.05002,2645.5,2645.0,3.78061]
[1739469184201,6.09727835,2645.5,2645.0,3.78061]
[1739469184437,7.2100626,2645.5,2644.9,8.03e-06]
[1739469184600,3.78052,2645.2,2644.9,8.03e-06]
[1739469185211,0.04726049,2645.2,2644.9,8.03e-06]
[1739469185616,2.82,2645.2,2644.9,8.03e-06]
[1739469186117,0.7776,2645.3,2645.2,3.78043]
[1739469186634,0.7776,2645.3,2645.0,3.78071]
[1739469186815,0.7776,2645.3,2645.1,3.78043]
[1739469187034,3.0476,2645.3,2645.1,3.78043]
[1739469187249,3.0476,2645.3,2645.0,3.7807]
[1739469187544,0.284,2645.2,2645.0,3.7807]
[1739469187728,0.284,2645.2,2645.1,3.78057]
[1739469188250,3.0476,2645.3,2645.1,3.78057]
[1739469188546,0.284,2645.2,2645.1,3.7805]
[1739469188704,3.0476,2645.3,2645.2,3.78043]
[1739469188905,3.3316,2645.3,2645.1,3.7805]
[1739469189208,0.4343812,2645.2,2645.1,3.7805]
[1739469189404,0.4343812,2645.2,2645.0,3.78063]
[1739469190147,6.05066,2645.1,2644.9,8.03e-06]
[1739469190369,0.14995865,2645.0,2644.9,8.03e-06]
[1739469191604,0.91665865,2645.0,2644.9,8.03e-06]
[1739469192320,4.74463196,2645.0,2644.9,8.03e-06]
[1739469192535,7.57963196,2645.0,2644.9,8.03e-06]
[1739469192755,8.73161066,2645.0,2644.9,8.03e-06]
[1739469193646,4.95090066,2645.0,2644.9,8.03e-06]
[1739469193828,7.53236865,2645.0,2644.9,8.03e-06]
[1739469195424,9.53236865,2645.0,2644.9,8.03e-06]
[1739469195624,11.23892674,2645.0,2644.9,8.03e-06]
[1739469196824,11.85670158,2645.0,2644.9,8.03e-06]
[1739469198566,4.33232,2643.9,2643.7,0.1343721]
[1739469198772,2.71834367,2643.8,2643.7,0.1343721]
[1739469198977,7.2504638,2643.8,2643.7,0.1343721]
[1739469199176,8.52439499,2643.8,2643.7,0.1343721]
[1739469199329,8.47710486,2643.8,2643.7,0.1343721]
[1739469200026,4.69467486,2643.8,2643.7,0.1343721]
[1739469200170,8.47710486,2643.8,2643.7,0.1343721]
[1739469201468,26.9476766,2643.8,2643.7,0.1343721]
[1739469201674,27.55772048,2643.8,2643.7,0.1343721]
[1739469201877,27.55772048,2643.8,2643.7,2.1e-06]
[1739469202083,26.32990176,2643.8,2643.7,2.1e-06]
[1739469202310,27.55772048,2643.8,2643.7,2.1e-06]
[1739469202911,0.015,2642.8,2642.2,4.5909]
[1739469203212,0.43109009,2642.7,2642.2,4.5909]
[1739469203410,0.43109009,2642.7,2642.2,8.37552]
[1739469203611,0.43109009,2642.7,2642.4,3.78442]
[1739469203814,0.43109009,2642.7,2642.3,3.78456]
[1739469204317,0.43109009,2642.7,2642.2,0.8063]
[1739469204518,3.78415,2642.6,2642.2,0.8063]
[1739469204688,0.14684374,2642.5,2642.2,4.59091]
[1739469204889,0.284,2642.7,2642.2,4.59091]
[1739469205123,0.71184374,2642.6,2642.1,0.005]
[1739469205280,4.49601374,2642.6,2642.1,0.005]
[1739469205614,4.49601374,2642.6,2642.0,3.78494]
[1739469205816,0.71184374,2642.6,2642.2,3.7847]
[1739469206114,0.19415396,2642.6,2642.2,3.7847]
[1739469206318,0.14684374,2642.6,2642.4,3.78443]
[1739469206718,0.284,2642.5,2642.4,3.78435]
[1739469207219,0.43084374,2642.5,2642.4,3.78435]
[1739469207443,0.43084374,2642.5,2642.3,8.37646]
[1739469207608,0.43084374,2642.5,2642.4,3.78443]
[1739469208526,0.14684374,2642.5,2642.4,3.78443]
[1739469208822,0.284,2642.5,2642.3,8.37639]
[1739469209030,0.43076674,2642.5,2642.4,3.78443]
[1739469209882,0.43076674,2642.5,2642.3,3.78449]
[1739469210225,0.43076674,2642.5,2642.3,3.78448]
[1739469210425,0.43076674,2642.5,2642.4,3.78443]
[1739469210583,0.14676674,2642.5,2642.4,3.78443]
[1739469210783,0.284,2643.1,2642.5,3.0]
[1739469210983,0.284,2643.1,2643.0,3.78357]
[1739469211191,0.284,2643.1,2642.6,3.78415]
[1739469211403,3.83091094,2643.0,2642.5,6.78426]
[1739469211602,4.24240203,2643.0,2642.5,6.78426]
[1739469212094,0.55,2642.9,2642.5,6.78426]
[1739469212587,0.55,2642.9,2642.6,3.78414]
[1739469212902,0.55,2642.9,2642.5,3.7842]
[1739469213949,0.55,2642.9,2642.6,3.78411]
[1739469214089,0.55,2642.9,2642.5,3.7842]
[1739469214284,1.3077,2642.9,2642.4,4.60811]
[1739469214489,1.3077,2642.9,2642.5,3.78419]
[1739469214746,5.09144,2642.9,2642.4,0.8238]
[1739469215012,3.78396,2642.8,2642.4,0.8238]
[1739469215161,3.83141746,2642.7,2642.2,3.78462]
[1739469215320,7.56849,2642.6,2642.1,4.56754]
[1739469215524,0.8049,2642.5,2642.0,3.78499]
[1739469215824,0.8049,2642.5,2642.1,3.78486]
[1739469216047,0.8049,2642.5,2642.2,3.7847]
[1739469216251,0.8049,2642.5,2642.0,3.78499]
[1739469216252,1.263812,2642.5,2642.0,3.78499]
[1739469216435,4.34206,2642.4,2641.9,3.78512]
[1739469216830,4.34206,2642.4,2641.8,4.56796]
[1739469217241,3.78461,2642.3,2641.8,4.56796]
[1739469217440,1.096667,2642.2,2641.8,0.7827]
[1739469217676,0.284,2642.2,2642.1,3.78486]
[1739469217994,0.8049,2642.7,2642.1,3.67323881]
[1739469218264,0.284,2642.5,2642.4,3.78443]
[1739469219384,0.42999705,2642.5,2642.4,3.78443]
[1739469220240,0.14599705,2642.5,2642.4,3.78443]
[1739469220438,0.14599705,2642.5,2642.4,5.328329]
[1739469220673,0.284,2642.6,2642.5,3.78429]
[1739469221283,1.70655809,2643.1,2642.8,3.78375]
[1739469221585,0.284,2643.0,2642.9,3.78372]
[1739469222237,2.25655809,2643.1,2643.0,3.78357]
[1739469222454,2.54055809,2643.1,2643.0,3.78357]
[1739469222659,2.54055809,2643.1,2642.9,3.78372]
[1739469224090,3.2557519,2643.1,2642.7,3.78394]
[1739469224255,7.0391919,2643.1,2642.7,3.78394]
[1739469224461,3.2557519,2643.1,2642.8,3.78372]
[1739469225486,3.2557519,2643.1,2642.9,3.78369]
[1739469225687,2.54055809,2643.1,2643.0,3.78357]
[1739469226790,1.99055809,2643.1,2643.0,3.78357]
[1739469226963,2.52555809,2643.5,2642.9,0.7555]
[1739469227291,0.284,2643.4,2643.2,3.78326]
[1739469227955,1.70655809,2643.5,2643.3,3.78302]
[1739469228291,0.284,2643.4,2643.3,3.78302]
[1739469228444,1.70655809,2643.5,2643.3,3.78302]
[1739469228645,1.70655809,2643.5,2643.4,3.783]
[1739469228845,0.76,2643.8,2643.5,3.78276]
[1739469229041,0.76,2643.8,2643.5,3.78275]
[1739469229042,1.27523039,2643.8,2643.5,3.78275]
[1739469229288,0.284,2643.7,2643.6,3.78265]
[1739469229472,0.284,2643.7,2643.4,7.56593]
[1739469229662,0.284,2643.7,2643.5,3.78286]
[1739469230892,0.284,2643.7,2643.6,3.78272]
[1739469231190,0.284,2643.7,2643.5,3.78286]
[1739469231488,4.33937,2644.2,2643.5,3.78286]
[1739469231489,4.06544,2644.5,2643.6,8.25538881]
[1739469231693,0.284,2644.5,2644.1,3.78193]
[1739469231856,0.284,2644.5,2644.1,3.7819]
[1739469232376,0.284,2644.5,2644.2,3.78178]
[1739469232576,0.284,2644.5,2644.1,3.7819]
[1739469232953,1.204294,2644.5,2644.1,3.7819]
[1739469233455,0.284,2644.4,2644.1,3.7819]
[1739469233887,0.284,2644.5,2644.2,0.7815]
[1739469234078,0.14666681,2644.3,2644.2,4.56328]
[1739469234247,0.284,2644.5,2644.3,3.78164]
[1739469234891,0.284,2644.5,2644.2,4.56328]
[1739469235115,1.1113,2644.5,2643.9,4.56378]
[1739469235399,4.89282,2644.5,2643.9,4.56378]
[1739469235557,5.382092,2644.5,2643.9,4.56378]
[1739469235889,9.163612,2644.5,2643.9,4.56378]
[1739469236194,9.163602,2644.5,2643.9,4.56378]
[1739469236399,5.382092,2644.5,2643.9,0.7815]
[1739469236701,3.78975,2644.0,2643.4,4.56442]
[1739469236854,8.467651,2644.0,2643.4,4.5644]
[1739469237058,4.33981,2643.9,2643.4,3.7829]
[1739469237263,3.82971702,2643.8,2643.2,0.7537]
[1739469237549,3.7828,2643.6,2643.2,0.7537]
[1739469237709,0.04729013,2643.5,2643.2,4.53695]
[1739469238996,3.83022013,2643.5,2643.2,0.7537]
[1739469239199,0.42642201,2643.4,2642.9,3.78371]
[1739469239494,0.42642201,2643.4,2642.7,0.83]
[1739469239698,0.04729796,2643.7,2642.7,0.83]
[1739469239996,0.284,2643.6,2642.8,3.78386]
[1739469240206,0.284,2643.6,2643.2,7.56645]
[1739469240500,0.284,2643.6,2642.8,3.0]
[1739469240796,4.06675,2643.6,2643.1,3.78333]
[1739469241202,4.06675,2643.6,2643.0,3.78357]
[1739469241364,0.7966,2643.5,2643.0,3.78357]
[1739469241702,4.57953,2643.5,2643.0,3.78357]
[1739469242075,0.7966,2643.5,2643.0,3.78348]
[1739469242691,0.7966,2643.5,2643.0,7.56696]
[1739469242887,0.7966,2643.5,2642.8,3.78378]
[1739469243060,0.565,2643.3,2642.6,3.78409]
[1739469243256,0.565,2643.3,2642.4,5.440356]
[1739469243257,0.7644,2643.0,2642.4,5.440356]
[1739469243462,3.8310327,2642.9,2642.4,3.78435]
[1739469243698,3.8310327,2642.9,2642.4,3.78442]
[1739469243910,3.78373,2642.9,2642.2,3.78462]
[1739469244112,0.565,2642.7,2642.0,3.78492]
[1739469244319,0.33131047,2642.6,2642.1,3.78486]
[1739469244620,0.7559,2642.5,2642.1,3.78486]
[1739469244910,0.7559,2642.5,2642.2,3.7847]
[1739469245114,0.7559,2642.5,2642.2,3.78464]
[1739469245426,0.7559,2642.5,2642.4,3.78443]
[1739469245717,0.284,2642.6,2642.4,3.78443]
[1739469245914,0.284,2642.6,2642.3,3.78457]
[1739469246086,0.284,2642.6,2642.3,3.78447]
[1739469246289,0.284,2642.6,2642.3,3.78454]
[1739469246599,0.284,2642.6,2642.1,3.78486]
[1739469246600,0.284,2642.6,2642.1,3.7848]
[1739469246806,0.284,2642.6,2642.3,3.78447]
[1739469247537,0.284,2642.6,2642.4,3.78431]
[1739469247709,0.284,2642.6,2642.5,3.78429]
[1739469247914,1.70655809,2642.7,2642.6,3.78415]
[1739469248212,1.99055809,2642.7,2642.6,3.78415]
[1739469248731,0.14135119,2642.7,2642.6,7.621504]
[1739469249031,0.284,2643.2,2642.6,7.621504]
[1739469249183,0.284,2643.2,2643.1,3.78343]
[1739469249520,0.4254747,2643.2,2643.1,3.78343]
[1739469249917,0.284,2643.2,2643.1,8.91519419]
[1739469250623,0.42556736,2643.2,2643.1,8.91519419]
[1739469250804,0.42556736,2643.2,2643.1,4.620639]
[1739469251175,0.284,2643.2,2643.1,4.620639]
[1739469251372,0.42557508,2643.2,2643.1,8.91519419]
[1739469251628,0.284,2643.2,2643.1,8.91519419]
[1739469252176,0.0075,2644.1,2643.6,3.78264]
[1739469252377,0.42557508,2644.0,2643.6,3.78264]
[1739469252879,4.20779508,2644.0,2643.5,3.78284]
[1739469253325,3.78232,2643.9,2643.4,0.8145]
[1739469253530,0.04728523,2643.8,2643.4,0.8145]
[1739469253688,0.0075,2643.8,2643.4,3.78289]
[1739469253883,0.14157508,2643.7,2643.4,3.78289]
[1739469254201,0.0075,2643.8,2643.5,3.78284]
[1739469254407,0.14157508,2643.7,2643.5,3.78284]
[1739469254707,0.0075,2643.8,2643.5,3.78284]
[1739469254916,0.14169081,2643.6,2643.5,3.78284]
[1739469255077,0.0075,2643.8,2643.3,3.78305]
[1739469255282,0.0075,2643.8,2643.4,3.78295]
[1739469255283,0.14169081,2643.6,2643.4,3.78295]
[1739469255624,0.14176795,2643.5,2643.2,3.78315]
[1739469255985,4.07411,2643.8,2643.3,3.78312]
[1739469256186,0.14176795,2643.7,2643.4,3.78297]
[1739469256449,0.7949,2643.6,2643.1,8.07787519]
[1739469256648,4.71938795,2643.6,2643.1,3.78332]
[1739469256809,0.04728917,2643.5,2643.1,3.78332]
[1739469257013,0.4765718,2643.7,2643.3,3.78311]
[1739469257241,0.14176795,2643.6,2643.3,3.78311]
[1739469257448,0.14176795,2643.6,2643.5,3.78286]
[1739469257824,0.0075,2643.8,2643.4,3.78298]
[1739469258028,0.14170624,2643.6,2643.2,3.78315]
[1739469258231,4.331799,2643.8,2643.2,3.78315]
[1739469258455,0.14170624,2643.5,2643.2,3.78315]
[1739469258664,3.78275,2643.6,2643.1,8.07797519]
[1739469258846,0.14170624,2643.4,2643.1,8.07797519]
[1739469259044,0.14178338,2643.5,2643.2,3.78319]
[1739469259211,3.7826,2643.7,2643.2,3.78328]
[1739469259422,0.8196,2643.5,2643.1,3.78335]
[1739469259628,4.60247,2643.5,2642.9,4.56752]
[1739469259860,0.14169852,2643.4,2643.0,3.78353]
[1739469260223,0.14169852,2643.4,2643.1,3.78342]
[1739469261160,0.14169852,2643.4,2643.2,3.78328]
[1739469261639,0.14169852,2643.4,2643.2,3.78316]
[1739469263126,0.14169852,2643.4,2643.2,3.76916]
[1739469263327,0.72996659,2643.4,2643.2,3.76916]
[1739469263551,0.72996659,2643.4,2643.2,3.78328]
[1739469263764,0.14169852,2643.4,2643.0,3.78357]
[1739469263976,0.14169852,2643.4,2643.1,3.78333]
[1739469264784,1.84825661,2643.4,2643.1,3.78333]
[1739469264988,1.84825661,2643.4,2643.0,3.78348]
[1739469265137,2.60720049,2643.4,2643.1,3.78343]
[1739469265566,2.60720049,2643.4,2643.1,7.56679]
[1739469265783,2.60720049,2643.4,2643.2,3.78323]
[1739469265973,1.84825661,2643.4,2643.3,3.78314]
[1739469266276,1.84825661,2643.4,2643.2,3.7832]
[1739469266478,1.84825661,2643.4,2643.0,3.78348]
[1739469267046,1.84825661,2643.4,2642.9,3.68894719]
[1739469267265,2.92508532,2643.4,2643.1,3.78342]
[1739469267945,2.92508532,2643.4,2643.1,3.78336]
[1739469268167,2.92508532,2643.4,2643.2,3.78328]
[1739469268483,2.92508532,2643.4,2643.1,3.78336]
[1739469268484,1.84825661,2643.4,2643.3,3.78314]
[1739469269883,2.13225661,2643.4,2643.3,3.78314]
[1739469270798,1.84825661,2643.4,2643.3,3.78314]
[1739469271083,1.70655809,2643.4,2643.3,3.78314]
[1739469271286,0.284,2644.0,2643.8,3.78236]
[1739469271488,2.46745809,2644.3,2643.8,3.78236]
[1739469271687,0.14050673,2643.9,2643.7,3.78257]
[1739469271889,0.284,2644.2,2643.7,3.78257]
[1739469272089,0.284,2644.2,2644.1,3.782]
[1739469272969,1.70655809,2644.3,2644.1,3.782]
[1739469273176,1.70655809,2644.3,2644.2,3.78186]
[1739469273581,1.70655809,2644.3,2644.1,3.782]
[1739469274198,1.70655809,2644.3,2644.0,3.78214]
[1739469274699,1.70655809,2644.3,2644.0,7.56428]
[1739469274915,1.70655809,2644.3,2644.2,3.78186]
[1739469275514,1.70655809,2644.3,2643.9,7.47112719]
[1739469275684,1.70655809,2644.3,2644.2,3.78186]
[1739469275885,1.70655809,2644.3,2644.1,7.56386]
[1739469276189,0.7929,2644.1,2643.5,0.793]
[1739469276500,3.82943367,2644.0,2643.5,4.57585]
[1739469276680,3.78244,2643.8,2643.3,8.27755719]
[1739469276887,0.7929,2644.1,2643.6,3.78268]
[1739469277189,0.7929,2644.1,2643.9,3.78228]
[1739469277544,0.7929,2644.1,2643.7,3.78247]
[1739469277855,0.84018288,2644.1,2643.6,3.78259]
[1739469278009,3.78242,2643.9,2643.4,3.783]
[1739469278211,0.7619,2643.7,2643.1,3.0]
[1739469278411,3.78272,2643.6,2643.1,3.0]
[1739469278730,0.284,2643.5,2643.1,3.0]
[1739469279057,0.14128579,2643.4,2643.2,3.78318]
[1739469279224,0.14128579,2643.4,2643.1,3.78341]
[1739469280210,0.14128579,2643.4,2642.8,0.7819]
[1739469280545,0.56209637,2643.4,2643.0,3.78354]
[1739469281012,0.56209637,2643.4,2643.1,3.78343]
[1739469281548,0.56209637,2643.4,2643.1,3.78335]
[1739469281893,0.14128579,2643.4,2643.0,3.78347]
[1739469282093,0.14128579,2643.4,2643.0,3.78346]
[1739469282778,0.14128579,2643.4,2643.1,3.78333]
[1739469283038,0.42528579,2643.4,2643.3,3.78314]
[1739469283839,0.14128579,2643.4,2643.3,9.04262219]
[1739469284000,0.14128579,2643.4,2643.3,12.04262219]
[1739469284332,0.284,2643.6,2643.5,3.78286]
[1739469284736,0.42506977,2643.6,2643.5,3.78286]
[1739469285028,0.42506977,2643.6,2643.4,6.78298]
[1739469285234,0.284,2643.6,2643.4,6.78298]
[1739469285407,0.14106977,2643.5,2643.4,6.78298]
[1739469286234,0.284,2643.6,2643.4,8.43974873]
[1739469286392,0.284,2643.6,2643.4,4.65676873]
[1739469286592,0.284,2643.6,2643.5,3.78286]
[1739469287294,0.284,2643.6,2643.4,4.65676873]
[1739469287495,0.284,2643.6,2643.5,3.78286]
[1739469288101,0.284,2643.6,2643.4,6.78293]
[1739469288602,0.284,2643.6,2643.4,3.0]
[1739469288924,0.284,2643.6,2643.4,3.78299]
[1739469289125,0.284,2643.6,2643.5,3.78286]
[1739469289525,4.59353,2644.2,2643.8,3.78242]
[1739469289734,0.284,2643.9,2643.8,3.78242]
[1739469290128,0.284,2643.9,2643.8,4.54152]
[1739469290339,3.97655809,2644.3,2643.8,4.54152]
[1739469290541,0.284,2644.1,2644.0,3.78214]
[1739469290772,0.284,2644.2,2644.1,3.782]
[1739469291844,3.7813,2644.6,2644.1,3.782]
[1739469292073,0.284,2644.5,2644.2,3.78183]
[1739469292228,0.284,2644.5,2644.3,3.78167]
[1739469292427,0.284,2644.5,2643.9,3.68894719]
[1739469292685,4.1127828,2644.5,2644.0,3.78206]
[1739469292859,5.20486089,2644.5,2644.0,3.78206]
[1739469293177,5.15758809,2644.5,2644.0,3.78206]
[1739469293768,5.15758809,2644.5,2644.1,3.782]
[1739469293952,5.15758809,2644.5,2644.0,3.78214]
[1739469294145,0.14077674,2644.4,2644.0,3.78214]
[1739469294741,0.14077674,2644.4,2644.1,3.78198]
[1739469294941,0.14077674,2644.4,2644.0,3.78207]
[1739469295163,0.14077674,2644.4,2644.0,3.78206]
[1739469296569,0.14077674,2644.4,2643.9,3.68894719]
[1739469296871,3.92242674,2644.4,2643.9,3.68894719]
[1739469297071,0.14077674,2644.4,2643.9,7.47116719]
[1739469297570,0.14077674,2644.4,2643.9,3.68894719]
[1739469297897,0.14077674,2644.4,2644.0,3.78202]
[1739469298117,0.14077674,2644.4,2643.9,3.68894719]
[1739469298304,4.54846,2644.2,2643.8,3.78231]
[1739469298674,3.92377939,2644.1,2643.7,3.0]
[1739469298877,3.78215,2644.0,2643.7,3.0]
[1739469299074,3.92379939,2644.1,2643.7,3.0]
[1739469299275,3.78202,2644.1,2643.6,8.23389719]
[1739469299460,0.14177939,2644.0,2643.6,8.23389719]
[1739469299797,0.14177939,2644.0,2643.7,3.7825]
[1739469300100,4.54852,2644.2,2643.6,4.45124719]
[1739469300261,0.14177939,2643.9,2643.8,3.78229]
[1739469300661,0.7666,2644.2,2643.8,3.78229]
[1739469300861,0.14177939,2643.9,2643.8,3.78229]
[1739469301062,3.78205,2644.1,2643.7,3.78257]
[1739469301265,3.78205,2644.1,2643.5,0.74745186]
[1739469301266,3.78259,2643.7,2643.5,0.74745186]
[1739469301502,3.78286,2643.5,2643.1,0.7803]
[1739469301702,3.78286,2643.5,2643.1,3.0]
[1739469301861,0.14165601,2643.4,2643.1,3.0]
[1739469302258,3.78324,2643.3,2642.8,0.7803]
[1739469302473,3.78353,2643.1,2642.5,4.54878]
[1739469302676,0.8173,2643.0,2642.5,3.7842]
[1739469302966,4.74239948,2643.0,2642.5,3.7842]
[1739469303382,0.95880948,2643.0,2642.6,3.78414]
[1739469304005,0.95880948,2643.0,2642.4,3.68894719]
[1739469304304,0.95880948,2643.0,2642.6,7.5681]
[1739469304506,0.95880948,2643.0,2642.6,3.78403]
[1739469305414,0.95880948,2643.0,2642.9,3.78372]
[1739469305799,0.14150948,2643.0,2642.8,3.78386]
[1739469306000,0.42550948,2643.0,2642.6,3.78406]
[1739469306199,0.75691419,2643.0,2642.5,3.0]
[1739469306408,0.14100804,2642.9,2642.5,3.78425]
[1739469306917,0.7746,2642.7,2642.4,3.0]
[1739469307414,0.7746,2642.7,2642.5,3.78428]
[1739469307415,0.14096174,2642.6,2642.5,3.78428]
[1739469308306,0.14096174,2642.6,2642.4,6.78442]
[1739469308518,0.7746,2642.7,2642.4,6.78442]
[1739469308706,0.7746,2642.7,2642.4,3.0]
[1739469308707,0.13995888,2642.5,2642.4,3.0]
[1739469308873,4.60604131,2642.7,2642.4,3.0]
[1739469309095,0.13995888,2642.5,2642.4,3.0]
[1739469309280,4.60604131,2642.7,2642.4,3.0]
[1739469309619,0.13995888,2642.5,2642.3,3.0]
[1739469309801,4.60604131,2642.7,2642.2,3.78462]
[1739469310002,0.13995888,2642.4,2642.2,3.78462]
[1739469310320,0.13995888,2642.3,2642.2,3.78464]
[1739469310507,4.60592131,2642.7,2642.2,3.78464]
[1739469310706,0.13995888,2642.3,2642.2,3.78464]
[1739469310881,5.56824494,2642.7,2642.2,3.78464]
[1739469311076,0.13971964,2642.3,2641.9,4.5680567]
[1739469311289,0.82190569,2642.7,2642.3,3.78446]
[1739469311494,0.7746,2642.7,2642.3,3.78446]
[1739469312419,0.7746,2642.7,2642.4,3.78437]
[1739469312947,0.284,2642.7,2642.6,3.78401]
[1739469314935,0.284,2643.0,2642.6,3.78401]
[1739469315126,0.284,2643.0,2642.7,3.78393]
[1739469315314,0.284,2643.0,2642.6,3.78401]
[1739469315942,3.78394,2642.8,2642.3,0.74032524]
[1739469316126,7.61486435,2642.9,2642.3,3.78446]
[1739469316313,3.78395,2642.8,2642.2,3.78461]
[1739469316532,4.60519468,2642.7,2642.2,3.78461]
[1739469316752,3.78417,2642.6,2642.2,3.78461]
[1739469316950,3.78436,2642.5,2642.1,6.78486]
[1739469317156,0.83892247,2642.6,2642.1,3.0]
[1739469317359,0.83892247,2642.6,2642.3,3.78452]
[1739469318070,4.62307247,2642.6,2642.1,6.78473]
[1739469318276,0.83892247,2642.6,2642.2,3.78465]
[1739469318665,2.48035809,2642.7,2642.3,3.78458]
[1739469318975,1.70655809,2642.7,2642.6,3.78415]
[1739469319189,0.284,2642.7,2642.6,3.78415]
[1739469319390,2.52605809,2643.2,2643.0,3.78348]
[1739469319558,0.8195,2643.2,2643.1,3.78343]
[1739469319892,0.8195,2644.0,2643.2,0.7982]
[1739469320087,0.284,2643.9,2643.6,3.78264]
[1739469320272,0.284,2643.9,2643.5,3.78285]
[1739469320509,0.284,2643.9,2643.6,3.78261]
[1739469320646,0.284,2643.9,2643.7,3.78255]
[1739469321076,0.284,2643.9,2643.8,3.78243]
[1739469321851,0.284,2644.0,2643.7,3.78254]
[1739469322248,0.284,2644.0,2643.8,3.78234]
[1739469322765,0.284,2644.0,2643.9,3.78229]
[1739469322967,0.284,2644.0,2643.7,0.801]
[1739469323288,0.284,2644.0,2643.8,3.78241]
[1739469323461,0.284,2644.0,2643.6,7.56522]
[1739469323646,0.284,2644.0,2643.6,3.78261]
[1739469324255,0.13561561,2643.9,2643.6,3.78261]
[1739469324598,0.13561561,2643.9,2643.4,6.7829]
[1739469324958,0.13561561,2643.9,2643.4,10.56581]
[1739469325431,0.13561561,2643.9,2643.3,3.78305]
[1739469325432,0.8234,2643.8,2643.3,3.78305]
[1739469325597,1.37795281,2643.8,2643.2,3.7832]
[1739469325898,0.13556923,2643.7,2643.3,3.78302]
[1739469326265,1.33066708,2643.8,2643.3,3.78302]
[1739469326465,0.13556923,2643.6,2643.3,3.78302]
[1739469326696,0.8234,2643.8,2643.3,3.78302]
[1739469326881,0.13556923,2643.5,2643.3,3.78302]
[1739469327081,0.660582,2643.7,2643.3,3.78302]
[1739469327264,0.660582,2643.7,2643.3,7.56608]
[1739469327470,0.13556923,2643.6,2643.3,3.78302]
[1739469328096,0.13556923,2643.6,2643.1,3.78332]
[1739469328268,0.13556923,2643.6,2643.3,3.78312]
[1739469328656,0.13556923,2643.6,2642.9,0.7763083]
[1739469328657,0.13556923,2643.6,2643.4,3.78295]
[1739469328857,0.13556923,2643.6,2643.4,3.7829]
[1739469329057,0.13556923,2643.6,2643.5,3.78286]
[1739469329564,0.8234,2643.8,2643.6,3.78258]
[1739469329955,0.8234,2643.8,2643.3,0.8049]
[1739469330167,1.16054581,2643.8,2643.5,3.78277]
[1739469330372,1.16054581,2643.8,2643.6,3.78267]
[1739469330774,1.16054581,2643.8,2643.7,3.78257]
[1739469330958,0.8234,2643.8,2643.7,3.78257]
[1739469331598,0.8234,2643.8,2643.3,0.8049]
[1739469331819,0.87068331,2643.8,2643.5,3.78279]
[1739469332126,0.87068331,2643.8,2643.2,3.78319]
[1739469332127,3.14068331,2643.8,2643.2,3.78319]
[1739469332327,2.27,2643.6,2643.2,3.78329]
[1739469332491,2.27,2643.4,2643.2,3.78329]
[1739469332691,0.93764,2643.5,2643.3,3.78314]
[1739469332884,2.27,2643.6,2643.3,3.78314]
[1739469333090,6.10002987,2643.6,2643.0,3.78347]
[1739469333415,6.10002987,2643.6,2643.2,3.78326]
[1739469333416,2.31729046,2643.6,2643.2,3.78326]
[1739469334329,2.27,2643.6,2643.2,3.78326]
[1739469334497,0.68737705,2643.5,2643.2,3.78326]
[1739469334701,0.04729044,2643.5,2643.1,3.78342]
[1739469335135,3.83021044,2643.5,2643.0,3.78357]
[1739469335300,0.015,2643.2,2642.8,3.78378]
[1739469335487,2.554,2643.1,2642.8,3.78378]
[1739469336025,0.04729872,2643.0,2642.8,3.0]
[1739469336218,2.554,2643.1,2642.8,6.78386]
[1739469336414,2.554,2643.1,2642.8,3.78386]
[1739469336727,2.554,2643.1,2642.8,3.78379]
[1739469337026,4.57604,2642.9,2642.4,3.78437]
[1739469337202,3.0623,2642.9,2642.5,3.78425]
[1739469337399,0.7923,2642.9,2642.5,3.78428]
[1739469337826,6.81573238,2643.1,2642.8,3.78386]
[1739469337827,1.99055809,2643.1,2642.8,3.78386]
[1739469338004,0.04729756,2643.0,2642.8,3.78386]
[1739469338533,2.2775,2643.0,2642.7,3.78393]
[1739469338824,2.2775,2643.0,2642.8,3.78377]
[1739469339027,1.99055809,2643.1,2642.8,3.78377]
[1739469339330,2.2653439,2643.1,2642.9,3.78369]
[1739469339730,1.9813439,2643.1,2642.9,3.78369]
[1739469339895,1.70655809,2643.1,2643.0,3.78357]
[1739469340228,1.99055809,2643.1,2643.0,3.78357]
[1739469341128,1.70655809,2643.1,2643.0,3.78357]